[Event "*** SCC Grand Prix: Titled Tuesday Blitz"]
[Site "Chess.com"]
[Date "2020.06.02"]
[Round "5"]
[White "JozefKneht"]
[Black "Twitch_ElhamBlitz05"]
[Result "0-1"]
[WhiteElo "2507"]
[BlackElo "2680"]
[TimeControl "180+1"]
[EndTime "10:57:38 PDT"]
[Termination "Twitch_ElhamBlitz05 won by resignation"]

1. e4 {[%clk 0:03:00.9]} 1... c6 {[%clk 0:02:59.4]} 2. d4 {[%clk 0:02:59.6]}
2... d5 {[%clk 0:03:00.3]} 3. Nc3 {[%clk 0:02:58.3]} 3... dxe4 {[%clk
0:03:00.6]} 4. Nxe4 {[%clk 0:02:58.8]} 4... Nf6 {[%clk 0:03:01.5]} 5. Nxf6+
{[%clk 0:02:58.6]} 5... exf6 {[%clk 0:03:02.4]} 6. c3 {[%clk 0:02:59]} 6... Bd6
{[%clk 0:03:02.9]} 7. Bd3 {[%clk 0:02:59.5]} 7... O-O {[%clk 0:03:03.8]} 8. Qc2
{[%clk 0:02:59.8]} 8... Re8+ {[%clk 0:03:04.7]} 9. Ne2 {[%clk 0:03:00]} 9... h5
{[%clk 0:03:05.6]} 10. O-O {[%clk 0:02:59.3]} 10... h4 {[%clk 0:03:06.2]} 11. h3
{[%clk 0:02:58.9]} 11... Be6 {[%clk 0:03:06.7]} 12. Bf4 {[%clk 0:02:56.6]} 12...
Qc7 {[%clk 0:03:07.1]} 13. Qd2 {[%clk 0:02:55.6]} 13... Nd7 {[%clk 0:03:06.8]}
14. Bxd6 {[%clk 0:02:54.4]} 14... Qxd6 {[%clk 0:03:07.7]} 15. Qf4 {[%clk
0:02:54.3]} 15... Qxf4 {[%clk 0:03:06]} 16. Nxf4 {[%clk 0:02:55.2]} 16... Nf8
{[%clk 0:03:06.2]} 17. Rfe1 {[%clk 0:02:51.9]} 17... Rac8 {[%clk 0:03:03.5]} 18.
Rad1 {[%clk 0:02:42.7]} 18... Bxa2 {[%clk 0:02:50.7]} 19. Ra1 {[%clk 0:02:33.8]}
19... Rxe1+ {[%clk 0:02:49.3]} 20. Rxe1 {[%clk 0:02:32.9]} 20... Be6 {[%clk
0:02:49.9]} 21. Ra1 {[%clk 0:02:26.3]} 21... a6 {[%clk 0:02:49.2]} 22. b4 {[%clk
0:02:26.4]} 22... Rd8 {[%clk 0:02:38.9]} 23. Kf1 {[%clk 0:02:21.2]} 23... f5
{[%clk 0:02:38]} 24. Be2 {[%clk 0:02:17.2]} 24... g6 {[%clk 0:02:36.3]} 25. Nd3
{[%clk 0:02:16.8]} 25... Bc4 {[%clk 0:02:27.6]} 26. Nc5 {[%clk 0:02:16.3]} 26...
Bxe2+ {[%clk 0:02:28.5]} 27. Kxe2 {[%clk 0:02:16.4]} 27... Re8+ {[%clk
0:02:29.4]} 28. Kf3 {[%clk 0:02:15.7]} 28... Re7 {[%clk 0:02:30.3]} 29. Rd1
{[%clk 0:02:13.6]} 29... Ne6 {[%clk 0:02:28.1]} 30. Nxe6 {[%clk 0:02:10.9]}
30... fxe6 {[%clk 0:02:29]} 31. Kf4 {[%clk 0:02:10.9]} 31... Kf7 {[%clk
0:02:19.2]} 32. Kg5 {[%clk 0:02:09.9]} 32... Rd7 {[%clk 0:02:13.2]} 33. Re1
{[%clk 0:02:07.5]} 33... Rd8 {[%clk 0:02:09.6]} 34. Kxh4 {[%clk 0:02:06.6]}
34... Kf6 {[%clk 0:02:10.2]} 35. f4 {[%clk 0:02:06.5]} 35... b6 {[%clk
0:01:58.2]} 36. Re5 {[%clk 0:02:04]} 36... Ra8 {[%clk 0:01:56.8]} 37. g4 {[%clk
0:02:03.5]} 37... a5 {[%clk 0:01:49.8]} 38. g5+ {[%clk 0:02:00.2]} 38... Ke7
{[%clk 0:01:47.1]} 39. Re2 {[%clk 0:01:54.4]} 39... a4 {[%clk 0:01:31.7]} 40.
Ra2 {[%clk 0:01:53.4]} 40... b5 {[%clk 0:01:29.2]} 41. Kg3 {[%clk 0:01:52.6]}
41... Kd6 {[%clk 0:01:29.5]} 42. h4 {[%clk 0:01:52.1]} 42... Kd5 {[%clk
0:01:29.9]} 43. h5 {[%clk 0:01:51.9]} 43... gxh5 {[%clk 0:01:30.8]} 44. Kh4
{[%clk 0:01:51.6]} 44... Kc4 {[%clk 0:01:30.7]} 45. Ra3 {[%clk 0:01:52]} 45...
Kd3 {[%clk 0:01:29.8]} 46. g6 {[%clk 0:01:52]} 46... Kc2 {[%clk 0:01:29.4]} 47.
Ra1 {[%clk 0:01:48.7]} 47... Kxc3 {[%clk 0:01:23]} 48. Kxh5 {[%clk 0:01:48]}
48... Kxb4 {[%clk 0:01:13.6]} 49. g7 {[%clk 0:01:46.9]} 49... Kc3 {[%clk
0:01:13.6]} 50. Rc1+ {[%clk 0:01:42.5]} 50... Kxd4 {[%clk 0:00:59.1]} 51. Rxc6
{[%clk 0:01:43.4]} 51... Rg8 {[%clk 0:00:51.2]} 52. Kg6 {[%clk 0:01:41.9]} 52...
a3 {[%clk 0:00:51.1]} 53. Kf7 {[%clk 0:01:38.6]} 53... Rxg7+ {[%clk 0:00:45.8]}
54. Kxg7 {[%clk 0:01:39.5]} 54... b4 {[%clk 0:00:44.5]} 55. Kf6 {[%clk
0:01:31.4]} 55... a2 {[%clk 0:00:44]} 56. Ra6 {[%clk 0:01:30.1]} 56... b3 {[%clk
0:00:44.1]} 57. Kxe6 {[%clk 0:01:30.6]} 57... b2 {[%clk 0:00:44.4]} 58. Rxa2
{[%clk 0:01:29.3]} 58... b1=Q {[%clk 0:00:44.7]} 59. Ra4+ {[%clk 0:01:27.2]}
59... Ke3 {[%clk 0:00:41.8]} 0-1

[Event "*** SCC Grand Prix: Titled Tuesday Blitz"]
[Site "Chess.com"]
[Date "2020.06.02"]
[Round "5"]
[White "rasmussvane"]
[Black "Khvicha_Supatashvili"]
[Result "1-0"]
[WhiteElo "2899"]
[BlackElo "2725"]
[TimeControl "180+1"]
[EndTime "10:57:42 PDT"]
[Termination "rasmussvane won on time"]

1. Nf3 {[%clk 0:03:00.9]} 1... d5 {[%clk 0:02:59.2]} 2. g3 {[%clk 0:03:00.8]}
2... Bg4 {[%clk 0:02:58.2]} 3. Bg2 {[%clk 0:03:01.2]} 3... e6 {[%clk 0:02:58.6]}
4. h3 {[%clk 0:03:01.4]} 4... Bh5 {[%clk 0:02:57.9]} 5. O-O {[%clk 0:03:01.4]}
5... Bd6 {[%clk 0:02:52]} 6. c4 {[%clk 0:02:59.7]} 6... c6 {[%clk 0:02:51.3]} 7.
d4 {[%clk 0:02:53.8]} 7... Nd7 {[%clk 0:02:48]} 8. Qb3 {[%clk 0:02:35.1]} 8...
Rb8 {[%clk 0:02:47]} 9. Nc3 {[%clk 0:02:27.9]} 9... Ngf6 {[%clk 0:02:45.4]} 10.
Nd2 {[%clk 0:02:26.7]} 10... O-O {[%clk 0:02:24.8]} 11. e4 {[%clk 0:02:25.4]}
11... c5 {[%clk 0:01:28.7]} 12. cxd5 {[%clk 0:01:53.8]} 12... cxd4 {[%clk
0:01:27.6]} 13. Nb5 {[%clk 0:01:53.7]} 13... Nc5 {[%clk 0:01:26.3]} 14. Qc4
{[%clk 0:01:35.3]} 14... exd5 {[%clk 0:01:19]} 15. exd5 {[%clk 0:01:34.3]} 15...
d3 {[%clk 0:00:44.8]} 16. g4 {[%clk 0:01:07.3]} 16... Bg6 {[%clk 0:00:38.1]} 17.
f4 {[%clk 0:01:06.9]} 17... Be7 {[%clk 0:00:07.7]} 18. f5 {[%clk 0:01:03.2]}
18... a6 {[%clk 0:00:07.9]} 19. Nc3 {[%clk 0:00:59.2]} 19... b5 {[%clk
0:00:07.1]} 20. Qd4 {[%clk 0:00:59.1]} 20... Re8 {[%clk 0:00:02.7]} 21. fxg6
{[%clk 0:00:52.4]} 21... hxg6 {[%clk 0:00:03]} 22. b4 {[%clk 0:00:46.8]} 22...
Rc8 {[%clk 0:00:03.3]} 23. Nf3 {[%clk 0:00:38.4]} 23... Nb7 {[%clk 0:00:01.3]}
24. a3 {[%clk 0:00:35.6]} 1-0

[Event "*** SCC Grand Prix: Titled Tuesday Blitz"]
[Site "Chess.com"]
[Date "2020.06.02"]
[Round "5"]
[White "Vaathi_Coming"]
[Black "Niclox"]
[Result "0-1"]
[WhiteElo "2863"]
[BlackElo "2675"]
[TimeControl "180+1"]
[EndTime "10:57:42 PDT"]
[Termination "Niclox won by resignation"]

1. e4 {[%clk 0:03:00.9]} 1... c5 {[%clk 0:02:57.9]} 2. Nf3 {[%clk 0:03:00.9]}
2... d6 {[%clk 0:02:58]} 3. Bb5+ {[%clk 0:02:58.8]} 3... Bd7 {[%clk 0:02:57.5]}
4. a4 {[%clk 0:02:52.7]} 4... Nc6 {[%clk 0:02:54.7]} 5. O-O {[%clk 0:02:50.8]}
5... a6 {[%clk 0:02:54.3]} 6. Bxc6 {[%clk 0:02:47]} 6... Bxc6 {[%clk 0:02:55.2]}
7. Re1 {[%clk 0:02:46.9]} 7... e5 {[%clk 0:02:54]} 8. d3 {[%clk 0:02:40]} 8...
h6 {[%clk 0:02:46.6]} 9. a5 {[%clk 0:02:39.5]} 9... g5 {[%clk 0:02:46]} 10. Nfd2
{[%clk 0:02:25.2]} 10... Ne7 {[%clk 0:02:45.8]} 11. Nc4 {[%clk 0:02:24.4]} 11...
Bg7 {[%clk 0:02:45.2]} 12. Nbd2 {[%clk 0:01:51.9]} 12... O-O {[%clk 0:02:41.2]}
13. Nf1 {[%clk 0:01:52.1]} 13... f5 {[%clk 0:02:39.6]} 14. b3 {[%clk 0:01:46.5]}
14... Ng6 {[%clk 0:02:35.2]} 15. Ba3 {[%clk 0:01:46.1]} 15... Qf6 {[%clk
0:02:31.7]} 16. f3 {[%clk 0:01:42.7]} 16... f4 {[%clk 0:02:14.7]} 17. b4 {[%clk
0:01:41]} 17... cxb4 {[%clk 0:02:11.7]} 18. Bxb4 {[%clk 0:01:41.9]} 18... Rad8
{[%clk 0:02:12.6]} 19. c3 {[%clk 0:01:34.1]} 19... Nh4 {[%clk 0:02:10.8]} 20. d4
{[%clk 0:01:29.8]} 20... h5 {[%clk 0:01:58.5]} 21. Qb3 {[%clk 0:00:56]} 21...
Kh7 {[%clk 0:01:51.9]} 22. Bxd6 {[%clk 0:00:50.6]} 22... g4 {[%clk 0:01:44.1]}
23. Bxf8 {[%clk 0:00:42.9]} 23... Qxf8 {[%clk 0:01:45]} 24. Nfd2 {[%clk
0:00:26]} 24... exd4 {[%clk 0:01:42.7]} 25. cxd4 {[%clk 0:00:16.9]} 25... Bxd4+
{[%clk 0:01:43.6]} 26. Kh1 {[%clk 0:00:17]} 26... Qg7 {[%clk 0:01:41.6]} 27. Ra2
{[%clk 0:00:13.9]} 27... Nxg2 {[%clk 0:01:37.5]} 28. Rf1 {[%clk 0:00:04.9]}
28... Nh4 {[%clk 0:01:18.3]} 29. Qd3 {[%clk 0:00:02.6]} 29... g3 {[%clk
0:01:16.4]} 30. hxg3 {[%clk 0:00:02.3]} 30... fxg3 {[%clk 0:01:15]} 31. e5+
{[%clk 0:00:02.1]} 31... Kh8 {[%clk 0:01:11.7]} 32. Rg1 {[%clk 0:00:02.2]} 32...
g2+ {[%clk 0:01:09.8]} 33. Kh2 {[%clk 0:00:02.3]} 33... Bxg1+ {[%clk 0:01:05.3]}
34. Kxg1 {[%clk 0:00:02]} 34... Rxd3 {[%clk 0:01:06.2]} 0-1

[Event "*** SCC Grand Prix: Titled Tuesday Blitz"]
[Site "Chess.com"]
[Date "2020.06.02"]
[Round "5"]
[White "Bastiandash"]
[Black "BIG_Pirate"]
[Result "0-1"]
[WhiteElo "2115"]
[BlackElo "2362"]
[TimeControl "180+1"]
[EndTime "10:57:42 PDT"]
[Termination "BIG_Pirate won on time"]

1. d4 {[%clk 0:03:00.9]} 1... d5 {[%clk 0:02:59.4]} 2. Nf3 {[%clk 0:03:00.6]}
2... Nf6 {[%clk 0:02:59.2]} 3. Bg5 {[%clk 0:02:58.8]} 3... Bf5 {[%clk
0:02:56.3]} 4. e3 {[%clk 0:02:58.6]} 4... e6 {[%clk 0:02:55.5]} 5. Bd3 {[%clk
0:02:57.9]} 5... Bg6 {[%clk 0:02:55.5]} 6. O-O {[%clk 0:02:52.7]} 6... c5 {[%clk
0:02:53.7]} 7. c3 {[%clk 0:02:52.1]} 7... Nc6 {[%clk 0:02:53.2]} 8. Ne5 {[%clk
0:02:47.5]} 8... Be7 {[%clk 0:02:45.2]} 9. f4 {[%clk 0:02:37.7]} 9... Bxd3
{[%clk 0:02:34.6]} 10. Qxd3 {[%clk 0:02:35.9]} 10... Ne4 {[%clk 0:02:26.9]} 11.
Bxe7 {[%clk 0:02:23.7]} 11... Qxe7 {[%clk 0:02:21]} 12. Nd2 {[%clk 0:02:16.4]}
12... Nxd2 {[%clk 0:01:43.9]} 13. Qxd2 {[%clk 0:02:17.3]} 13... O-O {[%clk
0:01:43.5]} 14. Rf3 {[%clk 0:02:13.8]} 14... f6 {[%clk 0:01:20.7]} 15. Nxc6
{[%clk 0:02:01.7]} 15... bxc6 {[%clk 0:01:21.6]} 16. Re1 {[%clk 0:01:59.9]}
16... c4 {[%clk 0:01:20.8]} 17. e4 {[%clk 0:01:58.7]} 17... Rab8 {[%clk
0:01:13.9]} 18. exd5 {[%clk 0:00:35.2]} 18... cxd5 {[%clk 0:01:13.4]} 19. f5
{[%clk 0:00:35.6]} 19... Qb7 {[%clk 0:01:10.6]} 20. fxe6 {[%clk 0:00:16.6]}
20... Qxb2 {[%clk 0:01:10.4]} 21. Qf4 {[%clk 0:00:12.3]} 21... Qb6 {[%clk
0:00:51]} 22. Qf5 {[%clk 0:00:10.2]} 22... Qd6 {[%clk 0:00:49.7]} 23. Rg3 {[%clk
0:00:08.4]} 23... Rbe8 {[%clk 0:00:40.9]} 24. Qg4 {[%clk 0:00:08.3]} 24... g6
{[%clk 0:00:38.6]} 0-1

[Event "*** SCC Grand Prix: Titled Tuesday Blitz"]
[Site "Chess.com"]
[Date "2020.06.02"]
[Round "5"]
[White "lrestevez"]
[Black "Lion-Al-Messi"]
[Result "0-1"]
[WhiteElo "2145"]
[BlackElo "2349"]
[TimeControl "180+1"]
[EndTime "10:57:44 PDT"]
[Termination "Lion-Al-Messi won on time"]

1. e4 {[%clk 0:01:43.2]} 1... e6 {[%clk 0:03:00.9]} 2. d4 {[%clk 0:01:39.2]}
2... Be7 {[%clk 0:03:01.8]} 3. Nc3 {[%clk 0:01:39.5]} 3... d5 {[%clk 0:03:02.7]}
4. e5 {[%clk 0:01:38.6]} 4... c5 {[%clk 0:03:02.4]} 5. dxc5 {[%clk 0:01:38]}
5... Nc6 {[%clk 0:03:02.1]} 6. f4 {[%clk 0:01:38.2]} 6... h5 {[%clk 0:03:00.9]}
7. Nf3 {[%clk 0:01:38.1]} 7... Nh6 {[%clk 0:03:01.1]} 8. a3 {[%clk 0:01:35.1]}
8... O-O {[%clk 0:03:00.7]} 9. Bd2 {[%clk 0:01:28.7]} 9... Bxc5 {[%clk 0:02:56]}
10. Bd3 {[%clk 0:01:27.2]} 10... Ng4 {[%clk 0:02:54.7]} 11. Qe2 {[%clk
0:01:22.7]} 11... Bf2+ {[%clk 0:02:44]} 12. Kd1 {[%clk 0:01:22.6]} 12... d4
{[%clk 0:02:22.9]} 13. Ne4 {[%clk 0:01:21.5]} 13... Be3 {[%clk 0:02:22.9]} 14.
Bxe3 {[%clk 0:01:09.7]} 14... Nxe3+ {[%clk 0:02:19.3]} 15. Kc1 {[%clk
0:01:07.2]} 15... b6 {[%clk 0:02:13.8]} 16. Nfg5 {[%clk 0:01:03]} 16... g6
{[%clk 0:01:54.7]} 17. Nf6+ {[%clk 0:01:02.1]} 17... Kg7 {[%clk 0:01:53.9]} 18.
g4 {[%clk 0:00:52.6]} 18... h4 {[%clk 0:01:46.9]} 19. Qf2 {[%clk 0:00:30.4]}
19... Rh8 {[%clk 0:01:45.5]} 20. Re1 {[%clk 0:00:29.7]} 20... Bb7 {[%clk
0:01:44.7]} 21. b3 {[%clk 0:00:27.6]} 21... Na5 {[%clk 0:01:44.4]} 22. Kb2
{[%clk 0:00:25]} 22... Qc7 {[%clk 0:01:43.6]} 23. Rxe3 {[%clk 0:00:23.4]} 23...
Qc3+ {[%clk 0:01:42.9]} 24. Ka2 {[%clk 0:00:21.5]} 24... dxe3 {[%clk 0:01:41.3]}
25. Qxe3 {[%clk 0:00:21.9]} 25... Rac8 {[%clk 0:01:34.6]} 26. Rb1 {[%clk
0:00:19.9]} 26... Ba6 {[%clk 0:01:23.2]} 27. f5 {[%clk 0:00:19]} 27... Bxd3
{[%clk 0:01:22.4]} 28. cxd3 {[%clk 0:00:19.1]} 28... Rhd8 {[%clk 0:00:53.4]} 29.
fxe6 {[%clk 0:00:18.3]} 29... Rxd3 {[%clk 0:00:52.6]} 0-1

[Event "*** SCC Grand Prix: Titled Tuesday Blitz"]
[Site "Chess.com"]
[Date "2020.06.02"]
[Round "5"]
[White "Maghalashvili"]
[Black "valeriocarnicelli"]
[Result "1-0"]
[WhiteElo "2781"]
[BlackElo "2598"]
[TimeControl "180+1"]
[EndTime "10:57:48 PDT"]
[Termination "Maghalashvili won by resignation"]

1. Nf3 {[%clk 0:03:00.9]} 1... Nf6 {[%clk 0:02:59.7]} 2. g3 {[%clk 0:02:58.7]}
2... g6 {[%clk 0:02:59.5]} 3. Bg2 {[%clk 0:02:58.8]} 3... Bg7 {[%clk 0:02:59.8]}
4. O-O {[%clk 0:02:57.7]} 4... O-O {[%clk 0:03:00]} 5. c4 {[%clk 0:02:46.6]}
5... d6 {[%clk 0:03:00]} 6. d4 {[%clk 0:02:46.2]} 6... Nbd7 {[%clk 0:03:00]} 7.
Nc3 {[%clk 0:02:44.4]} 7... e5 {[%clk 0:02:59.4]} 8. e4 {[%clk 0:02:43.8]} 8...
c6 {[%clk 0:02:58.8]} 9. h3 {[%clk 0:02:42.9]} 9... Qb6 {[%clk 0:02:58.4]} 10.
c5 {[%clk 0:02:42]} 10... dxc5 {[%clk 0:02:55.2]} 11. dxe5 {[%clk 0:02:42.2]}
11... Ne8 {[%clk 0:02:55.4]} 12. e6 {[%clk 0:02:40.6]} 12... fxe6 {[%clk
0:02:41.4]} 13. Ng5 {[%clk 0:02:40.5]} 13... Ne5 {[%clk 0:02:35.9]} 14. f4
{[%clk 0:02:40.1]} 14... c4+ {[%clk 0:02:30]} 15. Kh2 {[%clk 0:02:36.6]} 15...
Nd3 {[%clk 0:02:30.2]} 16. e5 {[%clk 0:02:33.7]} 16... Nc7 {[%clk 0:02:11.4]}
17. Nce4 {[%clk 0:02:28.9]} 17... Nd5 {[%clk 0:02:11.3]} 18. Nd6 {[%clk
0:02:26.7]} 18... Qd4 {[%clk 0:01:45.7]} 19. Nxc8 {[%clk 0:02:18.3]} 19... Rfxc8
{[%clk 0:01:26.7]} 20. Nxe6 {[%clk 0:02:18.3]} 20... Qb6 {[%clk 0:01:23.1]} 21.
Qc2 {[%clk 0:02:14.7]} 21... Qa6 {[%clk 0:01:09.6]} 22. f5 {[%clk 0:02:08.5]}
22... Bxe5 {[%clk 0:01:05.2]} 23. fxg6 {[%clk 0:02:06.2]} 23... hxg6 {[%clk
0:01:03.1]} 24. Qe2 {[%clk 0:02:01.9]} 24... Nf6 {[%clk 0:00:44.5]} 25. Bg5
{[%clk 0:01:47]} 25... c5 {[%clk 0:00:40.2]} 26. Bxf6 {[%clk 0:01:41.7]} 26...
Qxe6 {[%clk 0:00:39.4]} 27. Qe4 {[%clk 0:01:34.7]} 27... Bxg3+ {[%clk
0:00:05.2]} 28. Kxg3 {[%clk 0:01:32.7]} 28... Qxe4 {[%clk 0:00:06.1]} 29. Bxe4
{[%clk 0:01:32]} 29... Re8 {[%clk 0:00:05.1]} 30. Bd5+ {[%clk 0:01:27.8]} 30...
Kh7 {[%clk 0:00:04.7]} 31. Bxc4 {[%clk 0:01:26.7]} 31... Re3+ {[%clk 0:00:04.4]}
32. Rf3 {[%clk 0:01:26.7]} 32... Rxf3+ {[%clk 0:00:03.3]} 33. Kxf3 {[%clk
0:01:26.6]} 33... Rd8 {[%clk 0:00:03.5]} 34. Bxd3 {[%clk 0:01:22.1]} 34... Rxd3+
{[%clk 0:00:03.2]} 35. Kg4 {[%clk 0:01:22.1]} 35... b5 {[%clk 0:00:03.3]} 36.
Re1 {[%clk 0:01:18.2]} 36... c4 {[%clk 0:00:03.5]} 37. Re8 {[%clk 0:01:15.6]}
37... g5 {[%clk 0:00:02.2]} 38. Kxg5 {[%clk 0:01:14.8]} 38... Rd5+ {[%clk
0:00:02.2]} 39. Kg4 {[%clk 0:01:13.8]} 39... Kg6 {[%clk 0:00:02.2]} 40. Bc3
{[%clk 0:01:13.5]} 40... a6 {[%clk 0:00:02.2]} 41. Re6+ {[%clk 0:01:12.3]} 1-0

[Event "*** SCC Grand Prix: Titled Tuesday Blitz"]
[Site "Chess.com"]
[Date "2020.06.02"]
[Round "5"]
[White "Aguiar94"]
[Black "kidagent"]
[Result "1-0"]
[WhiteElo "2415"]
[BlackElo "2195"]
[TimeControl "180+1"]
[EndTime "10:57:48 PDT"]
[Termination "Aguiar94 won by resignation"]

1. e4 {[%clk 0:02:59.3]} 1... c5 {[%clk 0:02:59.4]} 2. Nf3 {[%clk 0:02:58.8]}
2... d6 {[%clk 0:02:59.5]} 3. d4 {[%clk 0:02:57.9]} 3... cxd4 {[%clk 0:03:00]}
4. Qxd4 {[%clk 0:02:58.8]} 4... Nc6 {[%clk 0:02:56.9]} 5. Bb5 {[%clk 0:02:58.8]}
5... Bd7 {[%clk 0:02:57]} 6. Bxc6 {[%clk 0:02:58.4]} 6... bxc6 {[%clk
0:02:56.7]} 7. Nc3 {[%clk 0:02:56.2]} 7... e5 {[%clk 0:02:55.4]} 8. Qd3 {[%clk
0:02:55.7]} 8... Nf6 {[%clk 0:02:54.7]} 9. Bg5 {[%clk 0:02:54]} 9... Be7 {[%clk
0:02:51]} 10. O-O-O {[%clk 0:02:50.7]} 10... Be6 {[%clk 0:02:39.9]} 11. Bxf6
{[%clk 0:02:44.5]} 11... gxf6 {[%clk 0:02:39.3]} 12. Nh4 {[%clk 0:02:42.2]}
12... Qb6 {[%clk 0:02:28.9]} 13. Rhf1 {[%clk 0:02:34.6]} 13... O-O-O {[%clk
0:02:21.3]} 14. f4 {[%clk 0:02:01.2]} 14... Kb8 {[%clk 0:01:43.9]} 15. g3 {[%clk
0:01:35.4]} 15... Rc8 {[%clk 0:01:32.9]} 16. Kb1 {[%clk 0:01:24.2]} 16... Rhd8
{[%clk 0:01:31.3]} 17. f5 {[%clk 0:01:13.3]} 17... Bd7 {[%clk 0:01:29.5]} 18.
Rf3 {[%clk 0:01:11.1]} 18... Rc7 {[%clk 0:01:27.7]} 19. Na4 {[%clk 0:01:02]}
19... Qb5 {[%clk 0:01:17.5]} 20. Qa3 {[%clk 0:00:59.5]} 20... Rb7 {[%clk
0:01:02.3]} 21. Rb3 {[%clk 0:00:50.8]} 21... Qe2 {[%clk 0:01:01.9]} 22. Nc3
{[%clk 0:00:50.1]} 22... Qxh2 {[%clk 0:00:50.8]} 23. Rxb7+ {[%clk 0:00:42.4]}
23... Kxb7 {[%clk 0:00:51.7]} 24. Qb3+ {[%clk 0:00:43.1]} 24... Kc7 {[%clk
0:00:49.7]} 25. Qxf7 {[%clk 0:00:43.5]} 25... Qxg3 {[%clk 0:00:46.2]} 26. Qxe7
{[%clk 0:00:41.3]} 26... Qxh4 {[%clk 0:00:46.3]} 27. Qxd6+ {[%clk 0:00:39.3]}
27... Kc8 {[%clk 0:00:46.5]} 28. Na4 {[%clk 0:00:32]} 28... Qh5 {[%clk
0:00:41.6]} 29. Nc5 {[%clk 0:00:30.6]} 29... Qf7 {[%clk 0:00:38]} 30. Ne6 {[%clk
0:00:28.1]} 1-0

[Event "*** SCC Grand Prix: Titled Tuesday Blitz"]
[Site "Chess.com"]
[Date "2020.06.02"]
[Round "5"]
[White "H3nriqueTV"]
[Black "grunbergmihai"]
[Result "0-1"]
[WhiteElo "2182"]
[BlackElo "2383"]
[TimeControl "180+1"]
[EndTime "10:57:55 PDT"]
[Termination "grunbergmihai won by resignation"]

1. e4 {[%clk 0:02:58]} 1... c5 {[%clk 0:02:55.5]} 2. Nf3 {[%clk 0:02:56.8]} 2...
e6 {[%clk 0:02:55.6]} 3. b3 {[%clk 0:02:55.7]} 3... d5 {[%clk 0:02:55.2]} 4.
exd5 {[%clk 0:02:55]} 4... exd5 {[%clk 0:02:55.2]} 5. Bb2 {[%clk 0:02:55.6]}
5... Nc6 {[%clk 0:02:55.2]} 6. Bb5 {[%clk 0:02:55.2]} 6... Nf6 {[%clk
0:02:54.6]} 7. O-O {[%clk 0:02:54.8]} 7... Be7 {[%clk 0:02:54.2]} 8. Bxc6+
{[%clk 0:02:51.8]} 8... bxc6 {[%clk 0:02:54]} 9. Ne5 {[%clk 0:02:52.5]} 9... Qc7
{[%clk 0:02:52.8]} 10. d4 {[%clk 0:02:53]} 10... O-O {[%clk 0:02:49.7]} 11. dxc5
{[%clk 0:02:44.5]} 11... Bxc5 {[%clk 0:02:48.9]} 12. Nd2 {[%clk 0:02:43.6]}
12... Ba6 {[%clk 0:02:46.7]} 13. c4 {[%clk 0:02:40.7]} 13... Rad8 {[%clk
0:02:42.6]} 14. Qf3 {[%clk 0:02:38.4]} 14... Bd6 {[%clk 0:02:31.6]} 15. Rfe1
{[%clk 0:02:35.2]} 15... Rfe8 {[%clk 0:02:29.9]} 16. Qg3 {[%clk 0:02:25.8]}
16... Re6 {[%clk 0:02:20.8]} 17. f4 {[%clk 0:02:05.9]} 17... Rde8 {[%clk
0:02:11.9]} 18. Rac1 {[%clk 0:02:02.1]} 18... Bb4 {[%clk 0:02:01.3]} 19. cxd5
{[%clk 0:01:20.1]} 19... Nxd5 {[%clk 0:01:58.4]} 20. Red1 {[%clk 0:00:31.9]}
20... Qb6+ {[%clk 0:01:43.3]} 21. Kh1 {[%clk 0:00:30.1]} 21... Qe3 {[%clk
0:01:42.6]} 22. Ndf3 {[%clk 0:00:27.3]} 22... Qxf4 {[%clk 0:01:38.9]} 23. Qxf4
{[%clk 0:00:26.9]} 23... Nxf4 {[%clk 0:01:38.7]} 24. Rxc6 {[%clk 0:00:26.8]}
24... f6 {[%clk 0:01:24]} 25. Rxe6 {[%clk 0:00:23.2]} 25... Nxe6 {[%clk
0:01:23.3]} 26. Nc6 {[%clk 0:00:10.8]} 26... Bc5 {[%clk 0:01:22]} 27. b4 {[%clk
0:00:11.4]} 27... Bb6 {[%clk 0:01:20.9]} 28. a4 {[%clk 0:00:12]} 28... Be2
{[%clk 0:01:19.1]} 29. Re1 {[%clk 0:00:11.7]} 29... Bc4 {[%clk 0:01:17.9]} 30.
b5 {[%clk 0:00:11.3]} 30... a5 {[%clk 0:01:14.7]} 31. Nfd4 {[%clk 0:00:10.6]}
31... Kf7 {[%clk 0:01:11.5]} 32. Nf5 {[%clk 0:00:10.3]} 32... Bc5 {[%clk
0:01:08.1]} 33. h3 {[%clk 0:00:08.7]} 33... Bb3 {[%clk 0:01:07.6]} 34. Rc1
{[%clk 0:00:08.2]} 34... Bxa4 {[%clk 0:01:05.5]} 35. b6 {[%clk 0:00:04.6]} 35...
Bxc6 {[%clk 0:01:04.3]} 36. Rxc5 {[%clk 0:00:05]} 36... Nxc5 {[%clk 0:01:04]}
37. Nd6+ {[%clk 0:00:05.7]} 37... Ke7 {[%clk 0:01:03.7]} 38. Nxe8 {[%clk
0:00:06.1]} 38... Kxe8 {[%clk 0:01:03.5]} 39. Ba3 {[%clk 0:00:06.7]} 39... Nb7
{[%clk 0:01:03.1]} 40. Kg1 {[%clk 0:00:07]} 40... Kd7 {[%clk 0:01:02.8]} 41. Kf2
{[%clk 0:00:07.7]} 41... Bd5 {[%clk 0:01:02.5]} 42. Ke3 {[%clk 0:00:08.3]} 42...
Bxg2 {[%clk 0:01:01.9]} 0-1

[Event "*** SCC Grand Prix: Titled Tuesday Blitz"]
[Site "Chess.com"]
[Date "2020.06.02"]
[Round "5"]
[White "Irochka83"]
[Black "EnergeticHay"]
[Result "0-1"]
[WhiteElo "2389"]
[BlackElo "2205"]
[TimeControl "180+1"]
[EndTime "10:57:55 PDT"]
[Termination "EnergeticHay won by resignation"]

1. d4 {[%clk 0:03:00.9]} 1... Nf6 {[%clk 0:02:59.6]} 2. c4 {[%clk 0:03:00.9]}
2... g6 {[%clk 0:02:59]} 3. Nc3 {[%clk 0:03:01.5]} 3... Bg7 {[%clk 0:02:58]} 4.
e4 {[%clk 0:03:01.5]} 4... d6 {[%clk 0:02:58.3]} 5. Bg5 {[%clk 0:03:01.5]} 5...
h6 {[%clk 0:02:56]} 6. Be3 {[%clk 0:02:49.5]} 6... Ng4 {[%clk 0:02:55.1]} 7. Bc1
{[%clk 0:02:44.6]} 7... c5 {[%clk 0:02:32.6]} 8. d5 {[%clk 0:02:37.7]} 8... Bd4
{[%clk 0:02:27.7]} 9. Nh3 {[%clk 0:02:37.5]} 9... Na6 {[%clk 0:02:08.6]} 10. Be2
{[%clk 0:02:30]} 10... h5 {[%clk 0:02:03.6]} 11. Nb5 {[%clk 0:02:20.1]} 11...
Bg7 {[%clk 0:02:01.6]} 12. f3 {[%clk 0:02:18.1]} 12... Nf6 {[%clk 0:02:00]} 13.
Nf2 {[%clk 0:02:11.6]} 13... O-O {[%clk 0:01:59.7]} 14. O-O {[%clk 0:02:10.1]}
14... Nc7 {[%clk 0:01:58.4]} 15. Nc3 {[%clk 0:02:09.5]} 15... a6 {[%clk
0:01:58.2]} 16. a4 {[%clk 0:02:07.9]} 16... Rb8 {[%clk 0:01:57.3]} 17. f4 {[%clk
0:01:17.3]} 17... e6 {[%clk 0:01:45.3]} 18. e5 {[%clk 0:01:08.2]} 18... Nfe8
{[%clk 0:01:44.9]} 19. Nfe4 {[%clk 0:00:56.9]} 19... exd5 {[%clk 0:01:36.9]} 20.
cxd5 {[%clk 0:00:43.9]} 20... dxe5 {[%clk 0:01:36.8]} 21. d6 {[%clk 0:00:29.6]}
21... Ne6 {[%clk 0:01:34.1]} 22. f5 {[%clk 0:00:28.7]} 22... Nd4 {[%clk
0:01:30.9]} 23. f6 {[%clk 0:00:20.6]} 23... Bh8 {[%clk 0:01:23.8]} 24. Nd5
{[%clk 0:00:20.7]} 24... Bxf6 {[%clk 0:01:01.1]} 25. Nexf6+ {[%clk 0:00:19.9]}
25... Nxf6 {[%clk 0:01:01.2]} 26. Nxf6+ {[%clk 0:00:20.5]} 26... Kg7 {[%clk
0:01:01.6]} 27. Bxh5 {[%clk 0:00:07.1]} 27... Qxd6 {[%clk 0:00:57.4]} 28. Be2
{[%clk 0:00:04.7]} 28... Rh8 {[%clk 0:00:57.2]} 29. Qd2 {[%clk 0:00:04.2]} 29...
Bf5 {[%clk 0:00:51.3]} 30. h3 {[%clk 0:00:03.7]} 30... Qxf6 {[%clk 0:00:41.8]}
31. g4 {[%clk 0:00:03]} 31... Qh4 {[%clk 0:00:41.3]} 32. gxf5 {[%clk 0:00:03.2]}
32... Qg3+ {[%clk 0:00:38.3]} 0-1